Workbook

Sheet PER COMINCIARE
B2: Questo foglio di lavoro ti permette di usare OpenSAM, un metodo automatico per assisterti nella quantificazione di assegni di mantenimento per i figli o per l'(ex-) coniuge.
B4: OpenSAM è *open* perché è distribuito secondo la "GNU General Public License v. 3". Puoi quindi esaminarne tutto il codice dal menu "Sviluppo" di excel e questo ti permette di avere completa conoscenza dei procedimenti che vengono seguiti. Anche i dati che OpenSAM usa, derivati da quelli raccolti e resi pubblici periodicamente dalla Baca d'Italia, sono a tua disposizione in questo stesso file.
B6: Il funzionamento dettaglia to SAM è descritto in Enrico Al Mureden, Riccardo Rovatti "Gli assegni di mantenimento tra disciplina legale e intelligenza artificiale" Giappichelli 2020
B9: Open Sam è organizzato in "pannelli" ognuno dei quali ha un nome esplicativo: 1) redditi, patrimoni, figli 2) accudimento 3) bilancio e assegni 4) spesa (ripartizione effettiva) 5) famiglie simili 6) parametri 7) BdI | K9: Nella maggior parte dei casi per usare OpenSAM è sufficiente visitare solo i pannelli 1, 2, e 3. Il pannello 4 potrebbe essere utile nel caso i genitori concordassero di assegnarsi alcuni capitoli di spesa per i figli. Gli altri pannelli riportano approfondimenti, dettagli sui dati usati nel calcolo e danno la possibilità di alterare alcuni comportamenti di OpenSAM senza dover alterare il codice. Nel file scaricato dal sito ci sono già i dati completi di un caso reale per fare le prime prove
B11: Le celle che puoi modificare hanno lo sfondo retinato | F11: dato | G11: dato | H11: dato | K11: Il panello 1 va riempito con i dati che puoi prendere dalla dichiarazione dei redditi delle due parti, se metti dati per più di un anno fiscale SAM utilizzerà la media. Inserisci anche il numero dei figli e il numero di anni di matrimonio/convivenza prima della disgregazione del nucleo familiare. Il pannello 2 stima una percentuale di accudimento per ciascun genitore, che si applica per ripartire l'onere dei figli che non sia già eventualmente ripartito per capitoli di spesa (nel pannello 4). C'è uno schema bisettimanale nel quale ogni giorno è diviso in ore. Ogni ora può essere assegnata ad uno dei due genitori o di nessuno. Segue uno schema biennale per contare i giorni di vacanza che i figli trascorrono con l'uno o l'altro genitore in varie occasioni. I pasti e le ore notture vengono calcolati separatamente. Il pannello 3 riassume tutti i dati conomici, permette di fare stime di spesa e di assegni. Se si conosce la spesa annuale del nucleo la si può introdurre, altrimenti la si può far stimare a OpenSAM. Se si conosce la spesa dedicata ai figli la si può introdurre, altrimenti la si può fare stimare da OpenSAM Il pannello 4 permette di identificare alcuni capitoli di spesa e suddividerli arbitrariamente tra i due genitori. Sono già presenti i due capitoli di spesa "Alimenti" e "Vestiario" con incidenze sulla spesa complessiva prese da statistiche ufficiali ma modificabile dal pannello 6. Se non conosci la spesa per il nucleo familiare, nel pannello 3 puoi chiedere che SAM la stimi. Per farlo SAM cerca nell'elenco delle famiglie italiane censite negli ultimi anni dalla Banca d'Italia (le trovi elencate nel pannello 7) le più simili a quella in esame che troverai nel pannello 5. Per ognuna di tali famiglie SAM calcola il rapporto tra la spesa che dichiarano e la loro capacità economica (reddito annuo + 3% del patrimonio se non si modificano i parametri nel pannello 5) e adotta per il nucleo in esame una percentuale non inferiore al quella del 90% delle famiglie simili (anche questo parametro può essere cambiato nel pannello 5)
B13: le altre sono originariamente bloccate per evitare errori e dovrebbero rimanere tali anche se, per totale trasparenza, il foglio non è protetto da password.
B15: Le celle su cui puoi cliccare per chiedere a OpenSAM di fare un calcolo hanno il testo bianco su sfondo nero | F15: clic
B17: Le celle che contengono informazioni sul "genitore/coniuge 1" hanno lo sfondo blu | F17: genitore/ coniuge 1
B19: Le celle che contengono informazioni sul "genitore/coniuge 2" hanno lo sfondo verde | F19: genitore/ coniuge 2
B21: Le celle che contengono informazioni sul nucleo complessivo o su fattori esterni non attribuibili ad alcun genitore/coniuge hanno lo sfondo grigio | F21: ?

Sheet redditi, patrimoni, figli
D3: genitore 1 | I3: genitore 2 | N3: nucleo familiare
C4: anno | D4: 2022 | E4: 2021 | F4: 2020 | G4: valori medi | I4: 2022 | J4: 2021 | K4: 2020 | L4: valori medi
B5: redditi da lavoro o assimilati | C5: reddito lordo | D5: 94402 | E5: 102702 | F5: 83675 | G5: =AVERAGE(D5:F5) -> 93593 | I5: 35400.75 | J5: 32830.87 | K5: 31378.12 | L5: =AVERAGE(I5:K5) -> 33203.24667
C6: deduzioni | D6: 1719 | E6: 1721 | F6: 1721 | G6: =AVERAGE(D6:F6) -> 1720.333333 | I6: 320 | J6: 822 | K6: 187 | L6: 443
C7: detrazioni per lavoro dipendente | D7: 345 | E7: 0 | F7: 0 | G7: =AVERAGE(D7:F7) -> 115 | I7: 1910 | J7: 1975 | K7: 1975 | L7: 1953.333333
C8: altre detrazioni | D8: 108 | E8: 79 | F8: 79 | G8: =AVERAGE(D8:F8) -> 88.66666667 | I8: 461 | J8: 463 | K8: 460 | L8: 461.3333333
C9: imposta netta | D9: 32646 | E9: 36592 | F9: 28410 | G9: =AVERAGE(D9:F9) -> 32549.33333 | I9: 7302.04 | J9: 6072.95 | K9: 5766.6 | L9: 6380.53
C10: reddito netto | D10: =D5-D9 -> 61756 | E10: =E5-E9 -> 66110 | F10: =F5-F9 -> 55265 | G10: 61043.66667 | I10: =I5-I9 -> 28098.71 | J10: =J5-J9 -> 26757.92 | K10: =K5-K9 -> 25611.52 | L10: 26822.71667
B11: altri redditi netti | D11: 0 | E11: 0 | F11: 0 | G11: 0 | I11: 0 | J11: 0 | K11: 0 | L11: =AVERAGE(I11:K11) -> 0
B12: reddito netto complessivo | D12: =D10+D11 -> 61756 | E12: =E10+E11 -> 66110 | F12: =F10+F11 -> 55265 | G12: 61043.66667 | I12: =I10+I11 -> 28098.71 | J12: 26757.92 | K12: =K10+K11 -> 25611.52 | L12: 26822.71667 | N12: =G12+L12 -> 87866.38333
B13: patrimonio | D13: 274311 | E13: 271398 | F13: 269954 | G13: 271887.6667 | I13: 125567 | J13: 125901 | K13: 119913 | L13: 123793.6667 | N13: =G13+L13 -> 395681.3333
N14: =RD+PPCE*PD -> 99736.82333
C16: numero figli | D16: 1
C17: numero anni di matrimonio o convivenza | D17: 7 | F17: Salva dati | G17: Carica dati

Sheet accudimento
A3: Settimane pari | C3: 00→0559 | D3: 06 | E3: 07 | F3: colazione | G3: 08 | H3: 09 | I3: 10 | J3: 11 | K3: 12 | L3: 13 | M3: pranzo | N3: 14 | O3: 15 | P3: 16 | Q3: 17 | R3: 18 | S3: 19 | T3: 20 | U3: cena | V3: 21 | W3: 22→2359
B4: LUN | C4: 2 | D4: 2 | E4: 2 | F4: 2 | G4: 0 | H4: 0 | I4: 0 | J4: 0 | K4: 0 | L4: 0 | M4: 2 | N4: 0 | O4: 0 | P4: 2 | Q4: 2 | R4: 2 | S4: 2 | T4: 2 | U4: 2 | V4: 2 | W4: 2
B5: MAR | C5: 2 | D5: 2 | E5: 2 | F5: 2 | G5: 0 | H5: 0 | I5: 0 | J5: 0 | K5: 0 | L5: 0 | M5: 2 | N5: 0 | O5: 0 | P5: 2 | Q5: 2 | R5: 2 | S5: 2 | T5: 2 | U5: 2 | V5: 2 | W5: 2 | Y5: 0 | Z5: nessun genitore
B6: MER | C6: 2 | D6: 2 | E6: 2 | F6: 2 | G6: 0 | H6: 0 | I6: 0 | J6: 0 | K6: 0 | L6: 0 | M6: 2 | N6: 0 | O6: 0 | P6: 1 | Q6: 1 | R6: 1 | S6: 1 | T6: 1 | U6: 1 | V6: 1 | W6: 1 | AE6: ore equivalenti | AK6: pasti equivalenti
B7: GIO | C7: 1 | D7: 1 | E7: 1 | F7: 1 | G7: 0 | H7: 0 | I7: 0 | J7: 0 | K7: 0 | L7: 0 | M7: 2 | N7: 0 | O7: 0 | P7: 1 | Q7: 1 | R7: 1 | S7: 1 | T7: 1 | U7: 1 | V7: 1 | W7: 1 | Y7: 1 | Z7: genitore 1 | AC7: sonno | AD7: veglia | AH7: colazione | AI7: pranzo | AJ7: cena
B8: VEN | C8: 1 | D8: 1 | E8: 0 | F8: 1 | G8: 0 | H8: 0 | I8: 0 | J8: 0 | K8: 0 | L8: 0 | M8: 2 | N8: 0 | O8: 0 | P8: 2 | Q8: 2 | R8: 2 | S8: 2 | T8: 2 | U8: 2 | V8: 2 | W8: 2 | AC8: =6*COUNTIF($C$4:$C$10,Y5)+3*COUNTIF($W$4:$W$10,Y5) -> 0 | AD8: =COUNTIF($D$4:$E$10,Y5)+COUNTIF($G$4:$L$10,Y5)+COUNTIF($N$4:$T$10,Y5)+COUNTIF($V$4:$V$10,Y5) -> 41 | AE8: =AC8*ACCxORASONNO+AD8*ACCxORAVEGLIA -> 41 | AH8: =COUNTIF($F$4:$F$10,Y5) -> 0 | AI8: =COUNTIF($M$4:$M$10,Y5) -> 0 | AJ8: =COUNTIF($U$4:$U$10,Y5) -> 0 | AK8: =AH8*PASTIxCOLAZIONE+AI8*PASTIxPRANZO+AJ8*PASTIxCENA -> 0
B9: SAB | C9: 2 | D9: 2 | E9: 2 | F9: 2 | G9: 2 | H9: 2 | I9: 2 | J9: 2 | K9: 2 | L9: 2 | M9: 2 | N9: 2 | O9: 2 | P9: 2 | Q9: 2 | R9: 2 | S9: 2 | T9: 2 | U9: 2 | V9: 2 | W9: 2 | Y9: 2 | Z9: genitore 2 | AC9: =6*COUNTIF($C$4:$C$10,Y7)+3*COUNTIF($W$4:$W$10,Y7) -> 18 | AD9: =COUNTIF($D$4:$E$10,Y7)+COUNTIF($G$4:$L$10,Y7)+COUNTIF($N$4:$T$10,Y7)+COUNTIF($V$4:$V$10,Y7) -> 15 | AE9: =AC9*ACCxORASONNO+AD9*ACCxORAVEGLIA -> 19.5 | AH9: =COUNTIF($F$4:$F$10,Y7) -> 2 | AI9: =COUNTIF($M$4:$M$10,Y7) -> 0 | AJ9: =COUNTIF($U$4:$U$10,Y7) -> 2 | AK9: =AH9*PASTIxCOLAZIONE+AI9*PASTIxPRANZO+AJ9*PASTIxCENA -> 2.5
B10: DOM | C10: 2 | D10: 2 | E10: 2 | F10: 2 | G10: 2 | H10: 2 | I10: 2 | J10: 2 | K10: 2 | L10: 2 | M10: 2 | N10: 2 | O10: 2 | P10: 2 | Q10: 2 | R10: 2 | S10: 2 | T10: 2 | U10: 2 | V10: 2 | W10: 2 | AC10: =6*COUNTIF($C$4:$C$10,Y9)+3*COUNTIF($W$4:$W$10,Y9) -> 45 | AD10: =COUNTIF($D$4:$E$10,Y9)+COUNTIF($G$4:$L$10,Y9)+COUNTIF($N$4:$T$10,Y9)+COUNTIF($V$4:$V$10,Y9) -> 56 | AE10: =AC10*ACCxORASONNO+AD10*ACCxORAVEGLIA -> 67.25 | AH10: =COUNTIF($F$4:$F$10,Y9) -> 5 | AI10: =COUNTIF($M$4:$M$10,Y9) -> 7 | AJ10: =COUNTIF($U$4:$U$10,Y9) -> 5 | AK10: =AH10*PASTIxCOLAZIONE+AI10*PASTIxPRANZO+AJ10*PASTIxCENA -> 13.25
C13: 00→0559 | D13: 06 | E13: 07 | F13: colazione | G13: 08 | H13: 09 | I13: 10 | J13: 11 | K13: 12 | L13: 13 | M13: pranzo | N13: 14 | O13: 15 | P13: 16 | Q13: 17 | R13: 18 | S13: 19 | T13: 20 | U13: cena | V13: 21 | W13: 22→2359
A14: Settimane dispari | B14: LUN | C14: 2 | D14: 2 | E14: 2 | F14: 2 | G14: 0 | H14: 0 | I14: 0 | J14: 0 | K14: 0 | L14: 0 | M14: 2 | N14: 0 | O14: 0 | P14: 2 | Q14: 2 | R14: 2 | S14: 2 | T14: 2 | U14: 2 | V14: 2 | W14: 2
B15: MAR | C15: 2 | D15: 2 | E15: 2 | F15: 2 | G15: 0 | H15: 0 | I15: 0 | J15: 0 | K15: 0 | L15: 0 | M15: 2 | N15: 0 | O15: 0 | P15: 1 | Q15: 1 | R15: 1 | S15: 1 | T15: 1 | U15: 1 | V15: 1 | W15: 1 | Y15: 0 | Z15: nessun genitore
B16: MER | C16: 1 | D16: 1 | E16: 1 | F16: 1 | G16: 0 | H16: 0 | I16: 0 | J16: 0 | K16: 0 | L16: 0 | M16: 2 | N16: 0 | O16: 0 | P16: 2 | Q16: 2 | R16: 2 | S16: 2 | T16: 2 | U16: 2 | V16: 2 | W16: 2 | AE16: ore equivalenti | AK16: pasti equivalenti
B17: GIO | C17: 2 | D17: 2 | E17: 2 | F17: 2 | G17: 0 | H17: 0 | I17: 0 | J17: 0 | K17: 0 | L17: 0 | M17: 2 | N17: 0 | O17: 0 | P17: 2 | Q17: 2 | R17: 2 | S17: 2 | T17: 2 | U17: 2 | V17: 2 | W17: 2 | Y17: 1 | Z17: genitore 1 | AC17: sonno | AD17: veglia | AH17: colazione | AI17: pranzo | AJ17: cena
B18: VEN | C18: 2 | D18: 2 | E18: 2 | F18: 2 | G18: 0 | H18: 0 | I18: 0 | J18: 0 | K18: 0 | L18: 0 | M18: 2 | N18: 0 | O18: 0 | P18: 1 | Q18: 1 | R18: 1 | S18: 1 | T18: 1 | U18: 1 | V18: 1 | W18: 1 | AC18: =6*COUNTIF($C$14:$C$20,Y15)+3*COUNTIF($W$14:$W$20,Y15) -> 0 | AD18: =COUNTIF($D$14:E$20,Y15)+COUNTIF($G$14:$L$20,Y15)+COUNTIF($N$14:$T$20,Y15)+COUNTIF($V$14:$V$20,Y15) -> 40 | AE18: =AC18*ACCxORASONNO+AD18*ACCxORAVEGLIA -> 40 | AH18: =COUNTIF($F$14:$F$20,Y15) -> 0 | AI18: =COUNTIF($M$14:$M$20,Y15) -> 0 | AJ18: =COUNTIF($U$14:$U$20,Y15) -> 0 | AK18: =AH18*PASTIxCOLAZIONE+AI18*PASTIxPRANZO+AJ18*PASTIxCENA -> 0
B19: SAB | C19: 1 | D19: 1 | E19: 1 | F19: 1 | G19: 1 | H19: 1 | I19: 1 | J19: 1 | K19: 1 | L19: 1 | M19: 1 | N19: 1 | O19: 1 | P19: 1 | Q19: 1 | R19: 1 | S19: 1 | T19: 1 | U19: 1 | V19: 1 | W19: 1 | Y19: 2 | Z19: genitore 2 | AC19: =6*COUNTIF($C$14:$C$20,Y17)+3*COUNTIF($W$14:$W$20,Y17) -> 30 | AD19: =COUNTIF($D$14:E$20,Y17)+COUNTIF($G$14:$L$20,Y17)+COUNTIF($N$14:$T$20,Y17)+COUNTIF($V$14:$V$20,Y17) -> 46 | AE19: =AC19*ACCxORASONNO+AD19*ACCxORAVEGLIA -> 53.5 | AH19: =COUNTIF($F$14:$F$20,Y17) -> 3 | AI19: =COUNTIF($M$14:$M$20,Y17) -> 2 | AJ19: =COUNTIF($U$14:$U$20,Y17) -> 4 | AK19: =AH19*PASTIxCOLAZIONE+AI19*PASTIxPRANZO+AJ19*PASTIxCENA -> 6.75
B20: DOM | C20: 1 | D20: 1 | E20: 1 | F20: 1 | G20: 1 | H20: 1 | I20: 1 | J20: 1 | K20: 1 | L20: 1 | M20: 1 | N20: 1 | O20: 1 | P20: 1 | Q20: 1 | R20: 1 | S20: 1 | T20: 1 | U20: 1 | V20: 1 | W20: 1 | AC20: =6*COUNTIF($C$14:$C$20,Y19)+3*COUNTIF($W$14:$W$20,Y19) -> 33 | AD20: =COUNTIF($D$14:E$20,Y19)+COUNTIF($G$14:$L$20,Y19)+COUNTIF($N$14:$T$20,Y19)+COUNTIF($V$14:$V$20,Y19) -> 26 | AE20: =AC20*ACCxORASONNO+AD20*ACCxORAVEGLIA -> 34.25 | AH20: =COUNTIF($F$14:$F$20,Y19) -> 4 | AI20: =COUNTIF($M$14:$M$20,Y19) -> 5 | AJ20: =COUNTIF($U$14:$U$20,Y19) -> 3 | AK20: =AH20*PASTIxCOLAZIONE+AI20*PASTIxPRANZO+AJ20*PASTIxCENA -> 9
A23: Anni pari | F23: giorni trascorsi con il genitore 1 | M23: giorni trascorsi con il genitore 2
B24: Vacanze Natalizie | F24: 7 | M24: 7 | AB24: giorni di vacanza | AD24: ore equivalenti | AE24: pasti equivalenti | AG24: settimane pari | AH24: ore equivalenti | AI24: pasti equivalenti | AK24: settimane dispari | AL24: ore equivalenti | AM24: pasti equivalenti | AO24: ore equivalenti | AP24: pasti equivalenti
B25: Vacanze Pasquali | F25: 3 | M25: 4 | Y25: 1 | Z25: genitore 1
B26: Vacanze estive | F26: 15 | M26: 15 | AB26: =SUM(F24:L27) -> 26 | AD26: =AB26*ACCxGIORNATA -> 448.5 | AE26: =AB26*PASTIxGIORNATA -> 58.5 | AG26: =(365-AB26-AB27)/7/2 -> 22.35714286 | AH26: =AG26*AE9 -> 435.9642857 | AI26: =AG26*AK9 -> 55.89285714 | AK26: =(365-AB26-AB27)/7/2 -> 22.35714286 | AL26: =AK26*AE19 -> 1196.107143 | AM26: =AK26*AK19 -> 150.9107143 | AO26: =AD26+AH26+AL26 -> 2080.571429 | AP26: =AE26+AI26+AM26 -> 265.3035714
B27: Altre vacanze | F27: 1 | M27: 0 | Y27: 2 | Z27: genitore 2 | AB27: =SUM(M24:T27) -> 26 | AD27: =AB27*ACCxGIORNATA -> 448.5 | AE27: =AB27*PASTIxGIORNATA -> 58.5 | AH27: =AG26*AE10 -> 1503.517857 | AI27: =AG26*AK10 -> 296.2321429 | AL27: =AK26*AE20 -> 765.7321429 | AM27: =AK26*AK20 -> 201.2142857 | AO27: =AD27+AH27+AL27 -> 2717.75 | AP27: =AE27+AI27+AM27 -> 555.9464286
A30: Anni dispari | F30: giorni trascorsi con il genitore 1 | M30: giorni trascorsi con il genitore 2
B31: Vacanze Natalizie | F31: 7 | M31: 7 | AB31: giorni di vacanza | AD31: ore equivalenti | AE31: pasti equivalenti | AG31: settimane pari | AH31: ore equivalenti | AI31: pasti equivalenti | AK31: settimane dispari | AL31: ore equivalenti | AM31: pasti equivalenti | AO31: ore equivalenti | AP31: pasti equivalenti
B32: Vacanze Pasquali | F32: 4 | M32: 3 | Y32: 1 | Z32: genitore 1
B33: Vacanze estive | F33: 15 | M33: 15 | AB33: =SUM(F31:L34) -> 26 | AD33: =AB33*ACCxGIORNATA -> 448.5 | AE33: =AB33*PASTIxGIORNATA -> 58.5 | AG33: =(365-AB33-AB34)/7/2 -> 22.35714286 | AH33: =AG33*AE9 -> 435.9642857 | AI33: =AG33*AK9 -> 55.89285714 | AK33: =(365-AB33-AB34)/7/2 -> 22.35714286 | AL33: =AK33*AE19 -> 1196.107143 | AM33: =AK33*AK19 -> 150.9107143 | AO33: =AD33+AH33+AL33 -> 2080.571429 | AP33: =AE33+AI33+AM33 -> 265.3035714
B34: Altre vacanze | F34: 0 | M34: 1 | Y34: 2 | Z34: genitore 2 | AB34: =SUM(M31:T34) -> 26 | AD34: =AB34*ACCxGIORNATA -> 448.5 | AE34: =AB34*PASTIxGIORNATA -> 58.5 | AH34: =AG33*AE10 -> 1503.517857 | AI34: =AG33*AK10 -> 296.2321429 | AL34: =AK33*AE20 -> 765.7321429 | AM34: =AK33*AK20 -> 201.2142857 | AO34: =AD34+AH34+AL34 -> 2717.75 | AP34: =AE34+AI34+AM34 -> 555.9464286
A38: Complessivo | F38: genitore 1 | M38: genitore 2
B39: ore equivalenti di accudimento | F39: =(AO26+AO33)/2 -> 2080.571429 | M39: =(AO27+AO34)/2 -> 2717.75
B40: pasti equivalenti | F40: =(AP26+AP33)/2 -> 265.3035714 | M40: =(AP27+AP34)/2 -> 555.9464286
B42: percentuale di accudimento | F42: =F39/(F39+M39) -> 0.4336040133 | M42: =M39/(F39+M39) -> 0.5663959867
B43: percentuale di spesa alimentare | F43: =F40/(F40+M40) -> 0.3230484888 | M43: =M40/(F40+M40) -> 0.6769515112

Sheet bilancio e assegni
E2: genitore 1 | H2: genitore 2
B4: redditi da lavoro o assimilati | C4: reddito lordo | E4: ='redditi, patrimoni, figli'!G5 -> 93593 | H4: ='redditi, patrimoni, figli'!L5 -> 33203.24667
C5: deduzioni | E5: ='redditi, patrimoni, figli'!G6 -> 1720.333333 | H5: ='redditi, patrimoni, figli'!L6 -> 443
C6: assegno teorico per l'ex coniuge | E6: 0
C7: detrazioni per lavoro dipendente | D7: giorni | E7: 365 | H7: 365
E8: 0 | H8: 1975
C9: altre detrazioni | E9: ='redditi, patrimoni, figli'!G8 -> 88.66666667 | H9: ='redditi, patrimoni, figli'!L8 -> 461.3333333
C10: imposta netta | E10: 6550.833333 | H10: 4203.166667
C11: reddito netto | E11: =RLLi-AC-INi -> 87042.16667 | H11: =RLLii+AC-INii -> 29000.08
B12: altri redditi netti | E12: =MAX('redditi, patrimoni, figli'!G11,E14*minRNPsuPA) -> 2718.876667 | H12: =MAX('redditi, patrimoni, figli'!L11,H14*minRNPsuPA) -> 1237.936667
B13: reddito netto complessivo | E13: =E11+E12 -> 89761.04333 | H13: =H11+H12 -> 30238.01667
B14: patrimonio | E14: ='redditi, patrimoni, figli'!G13 -> 271887.6667 | H14: ='redditi, patrimoni, figli'!L13 -> 123793.6667
B15: (A) e (B) sono mutuamente esclusivi | D15: (A) contributo monetario equivalente ad assegnazione casa ex-coniugale | G15: (B) capacità economica equivalente ad assegnazione casa ex-coniugale | K15: Spesa complessiva per i figli | N15: Spesa complessiva del nucleo familiare
B16: capacità economica | E16: =E13+PPCE*E14+CCi -> 97917.67333 | H16: =H13+PPCE*H14+CCii -> 33951.82667
B17: spesa effettiva per i figli | E17: =SEi -> 7007.538375 | H17: =SEii -> 17365.39292 | K17: stima | L17: 24372.9313 | N17: stima | O17: 74068.38862
B18: assegno per i figli | E18: 9748.699182
B19: spesa complessiva per i figli | E19: =E17+E18 -> 16756.23756 | F19: =E19/E16 -> 0.1711257732 | H19: =H17-E18 -> 7616.69374 | I19: =H19/H16 -> 0.2243382607
K21: Obiettivo ex-coniuge | N21: min | O21: max
B22: reddito disponibile al netto del mantenimento dei figli | E22: =E13-E19 -> 73004.80578 | H22: =H13-H19 -> 22621.32293 | K22: proponi | L22: 20424.69555 | N22: =AS -> 6412.8 | O22: =scala_di_equivalenza(1,0)/scala_di_equivalenza(2,0)*('redditi, patrimoni, figli'!N12-SF) -> 40441.6892
B24: assegno per i figli considerando l'eventuale modalità (A) per tenere conto dell'assegnazione della casa coniugale | D24: annuale | E24: 9748.699182 | G24: Azzera assegno per i figli
D25: mensile | E25: =E24/12 -> 812.3915985 | G25: Imponi assegno per i figli
G26: Calcola assegno per i figli
J27: Azzera entrambi gli assegni
J28: Calcola entrambi gli assegni
B29: assegno per l'ex coniuge considerando l'eventuale modalità (A) per tenere conto dell'assegnazione della casa coniugale | D29: annuale | E29: 0 | G29: Azzera assegno per ex-coniuge
D30: mensile | E30: =E29/12 -> 0 | G30: Imponi assegno per ex-coniuge
G31: Calcola assegno per ex-coniuge

Sheet spesa (ripartizione effettiva)
B3: In termini percentuali | F3: Spese effettive
B4: % della spesa per i figli | C4: di cui in capo al genitore 1 | D4: di cui in capo al genitore 2 | F4: spesa per i figli | G4: di cui in capo al genitore 1 | H4: di cui in capo al genitore 2
A5: Alimenti | B5: =PERCALIMENTI -> 0.18 | C5: =accudimento!F43 -> 0.3230484888 | D5: =accudimento!M43 -> 0.6769515112 | F5: =F$14*B5 -> 4387.127633 | G5: =F5*C5 -> 1417.254952 | H5: =F5-G5 -> 2969.872681
A6: Vestiario | B6: =PERCVESTIARIO -> 0.11 | D6: 1 | F6: 2681.022443 | G6: =F6*C6 -> 0 | H6: =F6-G6 -> 2681.022443
D7: =1-C7 -> 1 | F7: 0 | G7: 0 | H7: 0
D8: =1-C8 -> 1 | F8: 0 | G8: 0 | H8: 0
D9: 1 | F9: 0 | G9: 0 | H9: 0
D10: 1 | F10: 0 | G10: 0 | H10: 0
D11: 1 | F11: 0 | G11: 0 | H11: 0
D12: 1 | F12: 0 | G12: 0 | H12: 0
A13: Mantenimento indistinto | B13: =1-SUM(B5:B12) -> 0.71 | C13: =accudimento!F43 -> 0.3230484888 | D13: =accudimento!M43 -> 0.6769515112 | F13: =F$14*B13 -> 17304.78122 | G13: 5590.283422 | H13: 11714.4978
B14: =SUM(B5:B13) -> 1 | C14: =SUMPRODUCT(B5:B13,C5:C13) -> 0.287513155 | D14: =SUMPRODUCT(B5:B13,D5:D13) -> 0.712486845 | F14: =_xlfn.SINGLE(SF) -> 24372.9313 | G14: =SUM(G5:G13) -> 7007.538375 | H14: =SUM(H5:H13) -> 17365.39292

Sheet famiglie simili
A1: famiglia | B1: anno | C1: peso statistico | D1: area geografica | E1: numero figli | F1: reddito (include quello da patrimonio) | G1: patrimonio | H1: capacità economica | I1: spesa | J1: spese/ capacità economica | K1: dissimilarità
A2: 38903 | B2: 2004 | C2: 0.655380726 | D2: 3 | E2: 1 | F2: 77746.53199 | G2: 398199.7764 | H2: 89692.52528 | I2: 14776.02762 | J2: 0.1647409031 | K2: 0.04506565098
A3: 677342 | B3: 2002 | C3: 0.363624823 | D3: 1 | E3: 1 | F3: 78514.07595 | G3: 409272.7271 | H3: 90792.25776 | I3: 23397.34902 | J3: 0.2577020287 | K3: 0.06355984852
A4: 737312 | B4: 2014 | C4: 1.109998009 | D4: 1 | E4: 1 | F4: 80990.53712 | G4: 414173.3042 | H4: 93415.73624 | I4: 24727.48181 | J4: 0.2647036014 | K4: 0.04814427179
A5: 915250 | B5: 2020 | C5: 0.5618906889 | D5: 1 | E5: 1 | F5: 80078.22796 | G5: 365000 | H5: 91028.22796 | I5: 27400 | J5: 0.30100553 | K5: 0.08741101677
A6: 627970 | B6: 2000 | C6: 0.3795892363 | D6: 3 | E6: 1 | F6: 79069.66403 | G6: 369887.5394 | H6: 90166.29022 | I6: 29639.73875 | J6: 0.3287230591 | K6: 0.08752922242
A7: 944914 | B7: 2020 | C7: 0.395179271 | D7: 3 | E7: 1 | F7: 83047.90962 | G7: 388000 | H7: 94687.90962 | I7: 34800 | J7: 0.3675231626 | K7: 0.04626113613
A8: 26199 | B8: 2006 | C8: 0.6334483761 | D8: 1 | E8: 1 | F8: 87148.58459 | G8: 391666.3487 | H8: 98898.57505 | I8: 39970.51818 | J8: 0.4041566642 | K8: 0.08769813396
A9: 56765 | B9: 2000 | C9: 0.5812995158 | D9: 2 | E9: 1 | F9: 85653.35615 | G9: 404801.9876 | H9: 97797.41577 | I9: 40960.4723 | J9: 0.4188298022 | K9: 0.08211382867
A10: 33983 | B10: 2004 | C10: 0.368664097 | D10: 2 | E10: 1 | F10: 86179.16953 | G10: 400203.2582 | H10: 98185.26728 | I10: 42111.67872 | J10: 0.4289001791 | K10: 0.07699295751
A11: 626892 | B11: 2000 | C11: 1.654275851 | D11: 3 | E11: 1 | F11: 78215.97726 | G11: 384218.8356 | H11: 89742.54233 | I11: 40617.41977 | J11: 0.4525993884 | K11: 0.06186536838
A12: 616313 | B12: 2008 | C12: 0.301965942 | D12: 1 | E12: 1 | F12: 82512.72771 | G12: 412224.6868 | H12: 94879.46831 | I12: 43227.88607 | J12: 0.455608435 | K12: 0.06204072609
A13: 735402 | B13: 2006 | C13: 0.5900918741 | D13: 2 | E13: 1 | F13: 87179.98571 | G13: 395352.4699 | H13: 99040.55981 | I13: 45437.07434 | J13: 0.4587723901 | K13: 0.07877051071
A14: 868776 | B14: 2010 | C14: 0.656981949 | D14: 1 | E14: 1 | F14: 79903.03516 | G14: 378340.939 | H14: 91253.26333 | I14: 43680.17838 | J14: 0.4786697679 | K14: 0.05586082116
A15: 734801 | B15: 2006 | C15: 0.8076401722 | D15: 1 | E15: 1 | F15: 78890.21539 | G15: 410643.8332 | H15: 91209.53038 | I15: 44672.93208 | J15: 0.4897835993 | K15: 0.0623742396
A16: 32320 | B16: 2016 | C16: 0.6477106232 | D16: 1 | E16: 1 | F16: 84083.77351 | G16: 418985.1958 | H16: 96653.32938 | I16: 48092.11029 | J16: 0.4975732403 | K16: 0.09855170759
A17: 707078 | B17: 2006 | C17: 2.112612995 | D17: 1 | E17: 1 | F17: 79966.05833 | G17: 406967.9563 | H17: 92175.09702 | I17: 46553.89765 | J17: 0.5050593832 | K17: 0.03978195618
A18: 611460 | B18: 2000 | C18: 0.7469550407 | D18: 1 | E18: 1 | F18: 80321.13878 | G18: 401945.8662 | H18: 92379.51477 | I18: 47752.91243 | J18: 0.5169210138 | K18: 0.02269929446
A19: 715065 | B19: 2010 | C19: 0.478633038 | D19: 1 | E19: 1 | F19: 80604.85009 | G19: 358134.6324 | H19: 91348.88906 | I19: 49195.04129 | J19: 0.5385401158 | K19: 0.09825033189
A20: 685164 | B20: 2006 | C20: 0.9054268542 | D20: 1 | E20: 1 | F20: 85499.46558 | G20: 397941.7766 | H20: 97437.71888 | I20: 53489.95815 | J20: 0.5489656241 | K20: 0.06287332753
A21: 511495 | B21: 2000 | C21: 0.3981753227 | D21: 3 | E21: 1 | F21: 75293.34414 | G21: 386963.2559 | H21: 86902.24182 | I21: 49350.33947 | J21: 0.5678833876 | K21: 0.09106641189
A22: 885709 | B22: 2020 | C22: 0.150283096 | D22: 3 | E22: 1 | F22: 82532.32553 | G22: 415431.3922 | H22: 94995.2673 | I22: 54900 | J22: 0.5779235278 | K22: 0.07038730648
A23: 505436 | B23: 2010 | C23: 0.206434165 | D23: 1 | E23: 1 | F23: 75256.21239 | G23: 399689.4858 | H23: 87246.89697 | I23: 50739.60115 | J23: 0.5815633898 | K23: 0.07962219989
A24: 39284 | B24: 2004 | C24: 0.334700216 | D24: 3 | E24: 1 | F24: 80956.93691 | G24: 394027.4032 | H24: 92777.75901 | I24: 54301.9015 | J24: 0.5852900747 | K24: 0.005174272098
A25: 52791 | B25: 2000 | C25: 0.9263551763 | D25: 1 | E25: 1 | F25: 78570.00747 | G25: 375985.5749 | H25: 89849.57472 | I25: 52692.86889 | J25: 0.5864565197 | K25: 0.07829575875
A26: 639363 | B26: 2000 | C26: 0.3316099571 | D26: 2 | E26: 1 | F26: 85248.55416 | G26: 381611.6364 | H26: 96696.90325 | I26: 57632.82535 | J26: 0.5960152126 | K26: 0.08961629082
A27: 505424 | B27: 2000 | C27: 0.3993716479 | D27: 1 | E27: 1 | F27: 76139.82333 | G27: 391079.8863 | H27: 87872.21992 | I27: 53378.97395 | J27: 0.6074613114 | K27: 0.07019619274
A28: 734266 | B28: 2006 | C28: 0.2737641334 | D28: 2 | E28: 1 | F28: 80798.46743 | G28: 366011.675 | H28: 91778.81769 | I28: 55958.72545 | J28: 0.6097128604 | K28: 0.0759488031
A29: 618124 | B29: 2000 | C29: 0.6914033875 | D29: 1 | E29: 1 | F29: 79588.18738 | G29: 418524.0888 | H29: 92143.91005 | I29: 57632.82535 | J29: 0.625465376 | K29: 0.07365980704
A30: 819341 | B30: 2008 | C30: 0.6848410858 | D30: 2 | E30: 1 | F30: 79983.89172 | G30: 389944.612 | H30: 91682.23008 | I30: 60162.52186 | J30: 0.6562070076 | K30: 0.02553526435
A31: 728054 | B31: 2006 | C31: 1.808148295 | D31: 1 | E31: 1 | F31: 80101.49236 | G31: 372624.9121 | H31: 91280.23972 | I31: 61131.38075 | J31: 0.6697110014 | K31: 0.06785302787
A32: 624484 | B32: 2000 | C32: 2.306879122 | D32: 1 | E32: 1 | F32: 77302.08531 | G32: 385591.0458 | H32: 88869.81668 | I32: 62572.7818 | J32: 0.7040948675 | K32: 0.06969724316
A33: 58002 | B33: 2000 | C33: 0.2648476815 | D33: 1 | E33: 1 | F33: 87637.57199 | G33: 402057.5673 | H33: 99699.29901 | I33: 72452.69472 | J33: 0.7267121779 | K33: 0.09971178551
A34: 702808 | B34: 2006 | C34: 0.8672076649 | D34: 1 | E34: 1 | F34: 81401.60485 | G34: 409715.7807 | H34: 93693.07827 | I34: 69125.48438 | J34: 0.7377864583 | K34: 0.04196149239
A35: 637946 | B35: 2000 | C35: 0.2928120359 | D35: 2 | E35: 1 | F35: 82408.0792 | G35: 387855.1925 | H35: 94043.73497 | I35: 69571.05345 | J35: 0.7397733988 | K35: 0.03871590493
A36: 636571 | B36: 2000 | C36: 0.2459908798 | D36: 2 | E36: 1 | F36: 79241.01822 | G36: 402057.5673 | H36: 91302.74524 | I36: 70806.04257 | J36: 0.7755083638 | K36: 0.03633677616
A37: 726234 | B37: 2012 | C37: 0.3629192744 | D37: 1 | E37: 1 | F37: 75939.71818 | G37: 380658.2012 | H37: 87359.46421 | I37: 69212.11379 | J37: 0.7922680663 | K37: 0.0990089802 | L37: 0.7986071847
A38: 880912 | B38: 2014 | C38: 2.230736537 | D38: 1 | E38: 1 | F38: 79462.7115 | G38: 367388.561 | H38: 90484.36833 | I38: 73774.34245 | J38: 0.8153269322 | K38: 0.08898500992
A39: 503629 | B39: 2002 | C39: 0.333932338 | D39: 1 | E39: 1 | F39: 85424.24121 | G39: 408153.7551 | H39: 97668.85386 | I39: 87870.0441 | J39: 0.8996731365 | K39: 0.08775180676
A40: 626420 | B40: 2000 | C40: 0.8386239519 | D40: 2 | E40: 1 | F40: 78387.50352 | G40: 378729.9951 | H40: 89749.40338 | I40: 99896.89727 | J40: 1.11306475 | K40: 0.0736163983

Sheet parametri
B4: Ore quivalenti di accudimento per ora di veglia | C4: 1
B5: Ore equivalenti di accudimento per ora di sonno | C5: 0.25
B6: Ore equivalenti di accudimento in una giornata con 15 ore di veglia e 9 di sonno | C6: =ACCxORASONNO*9+ACCxORAVEGLIA*15 -> 17.25
B8: Pasti equivalenti alla colazione | C8: 0.25
B9: Pasti equivalenti al pranzo | C9: 1
B10: Pasti equivalenti alla cena | C10: 1
B11: Pasti equivalenti per giornata | C11: =PASTIxCENA+PASTIxCOLAZIONE+PASTIxPRANZO -> 2.25
B14: Percentuale di spesa per alimenti | C14: 0.18
B15: Percentuale di spesa per vestiario | C15: 0.11
D18: P/C | E18: da | F18: aliquota | G18: fino a | I18: aliquota | J18: fino a | L18: aliquota | M18: fino a | O18: aliquota | P18: fino a | R18: aliquota
B19: Aliquote IRPEF nazionale | C19: genitore 1 | D19: P | E19: 0 | F19: 0.23 | G19: 28000 | I19: 0.35 | J19: 50000 | L19: 0.43
C20: genitore 2 | D20: P | E20: 0 | F20: 0.23 | G20: 28000 | I20: 0.35 | J20: 50000 | L20: 0.43
B21: Aliquote IRPEF regionale | C21: genitore 1 | D21: P | E21: 0 | F21: 0.0133 | G21: 15000 | I21: 0.0193 | J21: 28000 | L21: 0.0203 | M21: 50000 | O21: 0.0227
C22: genitore 2 | D22: P | E22: 0 | F22: 0.0133 | G22: 15000 | I22: 0.0193 | J22: 28000 | L22: 0.0203 | M22: 50000 | O22: 0.0227
B23: Aliquote IRPEF comunale | C23: genitore 1 | D23: P | E23: 0 | F23: 0 | G23: 15000 | I23: 0.008
C24: genitore 2 | D24: P | E24: 0 | F24: 0 | G24: 15000 | I24: 0.008
D26: P = "progressivo" = ogni aliquota viene applicata su quanto eccede la soglia precedente
D27: C = "complessivo" = l'aliquota applicabile più a destra viene applicata sul totale
B30: peso del patrimonio nella capacità economica | C30: 0.03
B31: minimo rapporto tra reddito non da lavoro autonomo o assimilato e patrimonio | C31: 0.01 | E31: suggerimento: tasso di rendimento medio annuo dei titoli decennali del Tesoro (D.P.C.M. 221/99 art. 3) https://www.dt.mef.gov.it/it/debito_pubblico/dati_statistici/principali_tassi_di_interesse/archivio_tassi_interesse/
B32: percentile di rapporto di spesa per la stima di spesa complessiva | C32: 0.9 | E32: valori bassi allineano la spesa stimat alla minima rilevata nelle famiglie italiane, valori alti allineano la spesa stimata alla massima rilevata nella famiglie italiane
B35: assegno sociale | C35: =12*534.4 -> 6412.8 | E35: valore 2024
B36: anni di matrimonio per completa solidarietà | C36: 17 | E36: valore medio lunghezza matrimoni da www.istat.it/it/files//2016/11/matrimoni-separazioni-divorzi-2015.pdf

Sheet BdI
A1: famiglia | B1: anno | C1: peso statistico | D1: area geografica | E1: numero figli | F1: reddito (include quello da patrimonio) | G1: patrimonio | H1: spesa
A2: 34 | B2: 2000 | C2: 0.5549417983 | D2: 1 | E2: 2 | F2: 210824.9917 | G2: 783531.9827 | H2: 181131.7368
A3: 34 | B3: 2002 | C3: 0.580264716 | D3: 1 | E3: 2 | F3: 134604.9489 | G3: 688921.9433 | H3: 113737.1133
A4: 173 | B4: 2000 | C4: 0.5111972749 | D4: 3 | E4: 2 | F4: 64069.72029 | G4: 451457.1319 | H4: 79479.64002
A5: 173 | B5: 2002 | C5: 0.686389052 | D5: 3 | E5: 2 | F5: 38467.84149 | G5: 231373.7847 | H5: 33796.17081
A6: 173 | B6: 2004 | C6: 1.103467776 | D6: 3 | E6: 2 | F6: 32630.39433 | G6: 246267.127 | H6: 30906.52444
A7: 173 | B7: 2006 | C7: 0.7620199729 | D7: 3 | E7: 1 | F7: 35400.27879 | G7: 293731.4821 | H7: 27744.24203
A8: 465 | B8: 2000 | C8: 0.3177558601 | D8: 1 | E8: 2 | F8: 62444.34294 | G8: 142160.9692 | H8: 67375.51725
A9: 465 | B9: 2002 | C9: 0.524121616 | D9: 1 | E9: 2 | F9: 64748.82855 | G9: 796809.7194 | H9: 55373.72601
A10: 465 | B10: 2004 | C10: 0.557652804 | D10: 1 | E10: 2 | F10: 70278.70525 | G10: 398291.7084 | H10: 79782.69896
A11: 465 | B11: 2006 | C11: 0.4195144238 | D11: 1 | E11: 2 | F11: 60556.98969 | G11: 19397.45735 | H11: 28214.48342
A12: 465 | B12: 2008 | C12: 0.40645878 | D12: 1 | E12: 2 | F12: 67079.92038 | G12: 125895.6476 | H12: 31752.44209
A13: 465 | B13: 2010 | C13: 0.308497078 | D13: 1 | E13: 2 | F13: 64185.21227 | G13: 4522.442711 | H13: 69160.28243
A14: 561 | B14: 2000 | C14: 0.4808280763 | D14: 1 | E14: 1 | F14: 62811.54637 | G14: 306002.8584 | H14: 54339.52104
A15: 561 | B15: 2002 | C15: 0.688237151 | D15: 1 | E15: 1 | F15: 53147.75656 | G15: 226174.3739 | H15: 30026.59791
A16: 629 | B16: 2000 | C16: 0.3714148356 | D16: 1 | E16: 2 | F16: 186202.0532 | G16: 891936.5827 | H16: 102641.3175
A17: 629 | B17: 2002 | C17: 0.54961899 | D17: 1 | E17: 2 | F17: 93658.28827 | G17: 605081.4427 | H17: 48874.4624
A18: 629 | B18: 2004 | C18: 0.493045286 | D18: 1 | E18: 2 | F18: 101375.3818 | G18: 443280.8286 | H18: 28443.85317
A19: 632 | B19: 2000 | C19: 0.2869565917 | D19: 1 | E19: 2 | F19: 117879.2807 | G19: 968771.386 | H19: 77941.53523
A20: 632 | B20: 2002 | C20: 0.483634166 | D20: 1 | E20: 2 | F20: 60119.35832 | G20: 458198.085 | H20: 24177.26065
A21: 632 | B21: 2004 | C21: 0.460823465 | D21: 1 | E21: 2 | F21: 69998.16415 | G21: 540925.7445 | H21: 35216.19916
A22: 632 | B22: 2006 | C22: 0.3465584118 | D22: 1 | E22: 2 | F22: 73521.72081 | G22: 520792.3398 | H22: 44085.13035
A23: 632 | B23: 2008 | C23: 0.3024203049 | D23: 1 | E23: 1 | F23: 56188.62351 | G23: 576000.4407 | H23: 54814.74213
A24: 632 | B24: 2010 | C24: 0.164572109 | D24: 1 | E24: 1 | F24: 52180.78716 | G24: 570268.9955 | H24: 24377.06925
A25: 632 | B25: 2012 | C25: 0.2020580816 | D25: 1 | E25: 1 | F25: 52984.15082 | G25: 538874.1613 | H25: 26160.46074
A26: 823 | B26: 2000 | C26: 2.116140517 | D26: 1 | E26: 2 | F26: 106936.3352 | G26: 1015435.494 | H26: 47615.69142
A27: 1084 | B27: 2000 | C27: 0.213803744 | D27: 1 | E27: 2 | F27: 141019.2627 | G27: 1940498.973 | H27: 119382.2811
A28: 2447 | B28: 2000 | C28: 1.19675415 | D28: 2 | E28: 2 | F28: 82913.05252 | G28: 336328.7022 | H28: 51457.87977
A29: 2447 | B29: 2002 | C29: 1.652419214 | D29: 2 | E29: 2 | F29: 44045.09358 | G29: 257890.7803 | H29: 33276.22972
A30: 2447 | B30: 2004 | C30: 1.292275781 | D30: 2 | E30: 2 | F30: 55245.56987 | G30: 428504.801 | H30: 20686.43867
A31: 2447 | B31: 2006 | C31: 0.9494967016 | D31: 2 | E31: 2 | F31: 61966.45166 | G31: 311865.2681 | H31: 33668.16955
A32: 2447 | B32: 2008 | C32: 1.247137529 | D32: 2 | E32: 2 | F32: 46593.80992 | G32: 270387.2985 | H32: 25401.95367
A33: 2447 | B33: 2010 | C33: 0.640769317 | D33: 2 | E33: 2 | F33: 80420.93565 | G33: 594045.2289 | H33: 55476.75171
A34: 2447 | B34: 2012 | C34: 0.7819769091 | D34: 2 | E34: 1 | F34: 44073.18888 | G34: 299722.644 | H34: 31726.73841
A35: 2866 | B35: 2000 | C35: 1.67176277 | D35: 3 | E35: 3 | F35: 100489.0283 | G35: 301886.228 | H35: 46106.26028
A36: 2886 | B36: 2000 | C36: 0.3033807877 | D36: 3 | E36: 3 | F36: 92646.13895 | G36: 382846.6255 | H36: 84253.70182
A37: 2886 | B37: 2002 | C37: 0.357283974 | D37: 3 | E37: 3 | F37: 57473.89806 | G37: 173530.3386 | H37: 44584.94841
A38: 2886 | B38: 2004 | C38: 0.337414356 | D38: 3 | E38: 2 | F38: 51914.02535 | G38: 273972.1788 | H38: 57922.02827
A39: 2886 | B39: 2006 | C39: 0.3256755931 | D39: 3 | E39: 2 | F39: 48198.70136 | G39: 268037.5925 | H39: 42556.84583
A40: 2886 | B40: 2008 | C40: 0.3248715677 | D40: 3 | E40: 2 | F40: 36692.96489 | G40: 303040.8508 | H40: 37855.09447
A41: 2886 | B41: 2010 | C41: 0.206586308 | D41: 3 | E41: 1 | F41: 41165.31803 | G41: 290282.3411 | H41: 48092.31761
A42: 2886 | B42: 2012 | C42: 0.1634500166 | D42: 3 | E42: 1 | F42: 49214.84188 | G42: 282676.9387 | H42: 52592.44722
A43: 2886 | B43: 2014 | C43: 0.240609401 | D43: 3 | E43: 1 | F43: 51367.39009 | G43: 267008.7819 | H43: 50670.73147
A44: 2886 | B44: 2016 | C44: 0.2798557409 | D44: 3 | E44: 1 | F44: 55881.53566 | G44: 408474.6547 | H44: 33294.53789
A45: 2970 | B45: 2000 | C45: 0.828478361 | D45: 3 | E45: 3 | F45: 48850.68053 | G45: 227786.8811 | H45: 31286.3909
A46: 2970 | B46: 2002 | C46: 0.859032198 | D46: 3 | E46: 3 | F46: 3119.646536 | G46: 107237.8497 | H46: 14818.32105
A47: 3078 | B47: 2000 | C47: 0.472912174 | D47: 2 | E47: 2 | F47: 41402.45006 | G47: 382756.3387 | H47: 47752.91243
A48: 3078 | B48: 2002 | C48: 0.68208459 | D48: 2 | E48: 2 | F48: 29805.79753 | G48: 170168.0208 | H48: 24957.17229
A49: 3193 | B49: 2000 | C49: 0.3978681914 | D49: 3 | E49: 2 | F49: 44503.51885 | G49: 13722.10127 | H49: 27581.42356
A50: 3193 | B50: 2002 | C50: 0.332600559 | D50: 3 | E50: 2 | F50: 27876.6415 | G50: 19497.79085 | H50: 21837.52575
A51: 3905 | B51: 2000 | C51: 0.3511385688 | D51: 3 | E51: 4 | F51: 88507.55321 | G51: 699827.1649 | H51: 49399.56458
A52: 3905 | B52: 2002 | C52: 0.400967833 | D52: 3 | E52: 4 | F52: 88681.11355 | G52: 398589.1775 | H52: 24957.17229
A53: 4370 | B53: 2000 | C53: 0.3571562604 | D53: 1 | E53: 2 | F53: 120032.7087 | G53: 1380443.388 | H53: 74099.34687
A54: 4370 | B54: 2002 | C54: 0.460101853 | D54: 1 | E54: 2 | F54: 74441.04417 | G54: 2168957.713 | H54: 34316.1119
A55: 4370 | B55: 2004 | C55: 0.601493239 | D55: 1 | E55: 2 | F55: 100948.9815 | G55: 1083575.359 | H55: 59104.11048
A56: 5027 | B56: 2000 | C56: 1.33644887 | D56: 3 | E56: 3 | F56: 37461.33648 | G56: 164665.2153 | H56: 26346.43444
A57: 5028 | B57: 2000 | C57: 1.578057593 | D57: 3 | E57: 3 | F57: 46655.14433 | G57: 1372.210127 | H57: 47599.2249
A58: 5416 | B58: 2012 | C58: 0.6054845172 | D58: 1 | E58: 3 | F58: 31398.17946 | G58: 7842.44946 | H58: 21930.92517
A59: 5416 | B59: 2014 | C59: 0.831873643 | D59: 1 | E59: 3 | F59: 36087.4347 | G59: 3598.347805 | H59: 19163.7984
A60: 5416 | B60: 2016 | C60: 1.08887249 | D60: 1 | E60: 3 | F60: 44193.23437 | G60: 1647.626879 | H60: 28978.57928
A61: 7097 | B61: 2000 | C61: 0.9507361783 | D61: 2 | E61: 2 | F61: 90680.08788 | G61: -2922.44801 | H61: 74099.34687
A62: 7097 | B62: 2002 | C62: 1.189524687 | D62: 2 | E62: 2 | F62: 39456.60596 | G62: 6817.481235 | H62: 17158.05595
A63: 7097 | B63: 2004 | C63: 1.127276531 | D63: 2 | E63: 2 | F63: 32168.51011 | G63: 71417.46683 | H63: 26596.84972
A64: 7097 | B64: 2006 | C64: 0.5356935568 | D64: 2 | E64: 2 | F64: 61903.79623 | G64: 252049.3852 | H64: 43732.4493
A65: 7097 | B65: 2008 | C65: 0.6292659155 | D65: 2 | E65: 2 | F65: 62080.84152 | G65: 202769.9811 | H65: 36543.16142
A66: 7098 | B66: 2000 | C66: 1.292069094 | D66: 2 | E66: 1 | F66: 64010.72015 | G66: 218271.2914 | H66: 41166.30382
A67: 7160 | B67: 2000 | C67: 0.4463453975 | D67: 1 | E67: 1 | F67: 120255.0067 | G67: 2277868.811 | H67: 74099.34687
A68: 7165 | B68: 2000 | C68: 0.4812958671 | D68: 1 | E68: 1 | F68: 87139.45971 | G68: 298614.1256 | H68: 55986.17319
A69: 7165 | B69: 2002 | C69: 0.261140996 | D69: 1 | E69: 1 | F69: 48532.9001 | G69: 186268.8952 | H69: 35550.97198
A70: 7165 | B70: 2004 | C70: 0.282659077 | D70: 1 | E70: 1 | F70: 35144.149 | G70: 317684.5938 | H70: 35462.46629
A71: 7165 | B71: 2006 | C71: 0.3074454493 | D71: 1 | E71: 1 | F71: 68126.32678 | G71: 363721.0679 | H71: 42321.72513
A72: 7165 | B72: 2008 | C72: 0.7576045031 | D72: 1 | E72: 1 | F72: 59353.61692 | G72: 264603.6841 | H72: 34760.56818
A73: 7886 | B73: 2000 | C73: 1.472460997 | D73: 2 | E73: 1 | F73: 102173.3939 | G73: 422640.7192 | H73: 157118.0596
A74: 7886 | B74: 2002 | C74: 1.75113168 | D74: 2 | E74: 1 | F74: 46290.09521 | G74: 291167.01 | H74: 45494.84532
A75: 8954 | B75: 2000 | C75: 0.4455196875 | D75: 3 | E75: 2 | F75: 135337.7339 | G75: 2168094.746 | H75: 87890.05865
A76: 8954 | B76: 2002 | C76: 0.490568136 | D76: 3 | E76: 2 | F76: 82037.83698 | G76: 978442.6393 | H76: 55217.74369
A77: 8954 | B77: 2004 | C77: 0.422826762 | D77: 3 | E77: 2 | F77: 74959.38364 | G77: 950960.5109 | H77: 52331.76449
A78: 8954 | B78: 2006 | C78: 0.4947523157 | D78: 3 | E78: 2 | F78: 72452.2278 | G78: 1187033.818 | H78: 70536.20855
A79: 8954 | B79: 2008 | C79: 0.3734792494 | D79: 3 | E79: 2 | F79: 75979.94183 | G79: 1387080.365 | H79: 66345.89216
A80: 11972 | B80: 2000 | C80: 0.3218522437 | D80: 3 | E80: 1 | F80: 138112.9493 | G80: 363635.6837 | H80: 26346.43444
A81: 20020 | B81: 2000 | C81: 0.3470639683 | D81: 1 | E81: 1 | F81: 93915.2961 | G81: 213790.3378 | H81: 86723.68005
A82: 20020 | B82: 2002 | C82: 0.394068627 | D82: 1 | E82: 1 | F82: 52234.58169 | G82: 113087.1869 | H82: 44389.9705
A83: 20020 | B83: 2004 | C83: 0.306417363 | D83: 1 | E83: 1 | F83: 43147.83062 | G83: 169924.3176 | H83: 29552.05524
A84: 20047 | B84: 2000 | C84: 0.9459635815 | D84: 1 | E84: 2 | F84: 222304.9017 | G84: 2813030.761 | H84: 61475.0137
A85: 20154 | B85: 2000 | C85: 1.041714105 | D85: 1 | E85: 2 | F85: 175058.6205 | G85: 823316.9805 | H85: 70806.04257
A86: 20154 | B86: 2002 | C86: 1.095339924 | D86: 1 | E86: 1 | F86: 60991.88211 | G86: 211959.8467 | H86: 38995.5817
A87: 20154 | B87: 2004 | C87: 1.325193763 | D87: 1 | E87: 2 | F87: 82395.92143 | G87: 597093.4224 | H87: 45190.0178
A88: 20154 | B88: 2006 | C88: 0.746356737 | D88: 1 | E88: 1 | F88: 79686.51511 | G88: 655986.7396 | H88: 55547.26424
A89: 20170 | B89: 2002 | C89: 2.109972838 | D89: 1 | E89: 1 | F89: 34049.89154 | G89: 396231.7832 | H89: 9514.921935
A90: 20179 | B90: 2000 | C90: 0.283145042 | D90: 1 | E90: 3 | F90: 121117.1353 | G90: 1757753.158 | H90: 100171.3393
A91: 20179 | B91: 2002 | C91: 0.399639564 | D91: 1 | E91: 3 | F91: 68402.6698 | G91: 473146.3913 | H91: 105548.0411
A92: 20179 | B92: 2004 | C92: 0.400751128 | D92: 1 | E92: 3 | F92: 85279.22445 | G92: 985068.508 | H92: 45805.68562
A93: 20179 | B93: 2006 | C93: 0.3081570931 | D93: 1 | E93: 1 | F93: 99119.29592 | G93: 446015.3631 | H93: 52314.35468
A94: 20179 | B94: 2008 | C94: 0.3019027193 | D94: 1 | E94: 1 | F94: 103298.1485 | G94: 209454.7057 | H94: 27295.95899
A95: 20223 | B95: 2000 | C95: 0.7008858983 | D95: 1 | E95: 1 | F95: 92141.16563 | G95: 204459.309 | H95: 44459.60812
A96: 20223 | B96: 2002 | C96: 0.34205049 | D96: 1 | E96: 1 | F96: 35629.74306 | G96: 125435.7878 | H96: 21057.61412
A97: 20223 | B97: 2004 | C97: 0.632293733 | D97: 1 | E97: 1 | F97: 61383.6616 | G97: 272420.8295 | H97: 13298.42486
A98: 20223 | B98: 2006 | C98: 0.4184453756 | D98: 1 | E98: 1 | F98: 34471.12776 | G98: 181553.9946 | H98: 21043.30222
A99: 20223 | B99: 2008 | C99: 0.4233202693 | D99: 1 | E99: 1 | F99: 40667.87072 | G99: 418909.4114 | H99: 32977.97494
A100: 20223 | B100: 2010 | C100: 0.267209761 | D100: 1 | E100: 1 | F100: 56763.71291 | G100: 255683.4684 | H100: 19854.62653
A101: 20223 | B101: 2012 | C101: 0.2346955866 | D101: 1 | E101: 1 | F101: 40916.11221 | G101: 193712.729 | H101: 21304.32731
A102: 20231 | B102: 2000 | C102: 0.5444691223 | D102: 1 | E102: 1 | F102: 63300.05317 | G102: 480273.5446 | H102: 49399.56458
A103: 20231 | B103: 2002 | C103: 1.177378501 | D103: 1 | E103: 1 | F103: 41651.18081 | G103: 278168.4828 | H103: 23397.34902
A104: 20231 | B104: 2004 | C104: 0.96563372 | D104: 1 | E104: 1 | F104: 71542.73861 | G104: 314359.9876 | H104: 24872.97983
A105: 20231 | B105: 2006 | C105: 0.575711411 | D105: 1 | E105: 1 | F105: 46244.81479 | G105: 193994.7695 | H105: 16223.32797
A106: 20284 | B106: 2000 | C106: 0.887245446 | D106: 1 | E106: 3 | F106: 98618.42619 | G106: 665938.9031 | H106: 104425.1907
A107: 20284 | B107: 2002 | C107: 0.678819203 | D107: 1 | E107: 3 | F107: 55290.27547 | G107: 395805.1542 | H107: 84295.44911
A108: 20284 | B108: 2004 | C108: 0.654087877 | D108: 1 | E108: 3 | F108: 47609.90605 | G108: 404493.7561 | H108: 59104.11048
A109: 20372 | B109: 2000 | C109: 3.34281459 | D109: 1 | E109: 1 | F109: 70709.98786 | G109: 347443.6042 | H109: 65866.08611
A110: 20372 | B110: 2002 | C110: 1.942787607 | D110: 1 | E110: 1 | F110: 38259.83906 | G110: 229813.9615 | H110: 34641.07508
A111: 20372 | B111: 2004 | C111: 3.243176755 | D111: 1 | E111: 1 | F111: 41440.56568 | G111: 373214.1159 | H111: 31522.19226
A112: 20372 | B112: 2006 | C112: 1.275792628 | D112: 1 | E112: 1 | F112: 38456.90174 | G112: 284496.0412 | H112: 35385.66462
A113: 20372 | B113: 2008 | C113: 1.559234389 | D113: 1 | E113: 1 | F113: 36005.49053 | G113: 229508.8797 | H113: 25401.95367
A114: 20375 | B114: 2000 | C114: 2.903305645 | D114: 1 | E114: 1 | F114: 103313.6887 | G114: 263464.3444 | H114: 81287.65783
A115: 20393 | B115: 2000 | C115: 0.3118265305 | D115: 1 | E115: 3 | F115: 62071.92511 | G115: 352658.0027 | H115: 41303.52483
A116: 20393 | B116: 2002 | C116: 0.44964943 | D116: 1 | E116: 3 | F116: 38692.45604 | G116: 207976.4357 | H116: 33276.22972
A117: 20393 | B117: 2004 | C117: 0.460586955 | D117: 1 | E117: 3 | F117: 36991.15245 | G117: 269662.5041 | H117: 28628.55351
A118: 20393 | B118: 2006 | C118: 0.6414443314 | D118: 1 | E118: 3 | F118: 39399.26289 | G118: 231593.8848 | H118: 32658.26456
A119: 20704 | B119: 2000 | C119: 1.501490461 | D119: 1 | E119: 1 | F119: 103114.73 | G119: 1914233.128 | H119: 32109.71698
A120: 20711 | B120: 2000 | C120: 1.242951757 | D120: 1 | E120: 4 | F120: 240720.6106 | G120: 2929668.622 | H120: 207615.3923
A121: 20711 | B121: 2002 | C121: 1.098583026 | D121: 1 | E121: 3 | F121: 93452.78156 | G121: 686452.2232 | H121: 41335.3166
A122: 20711 | B122: 2004 | C122: 0.79117918 | D122: 1 | E122: 2 | F122: 72664.12748 | G122: 1239339.317 | H122: 65753.32291
A123: 20766 | B123: 2000 | C123: 2.027354808 | D123: 2 | E123: 2 | F123: 138986.6355 | G123: 1524937.114 | H123: 69296.61143
A124: 20766 | B124: 2002 | C124: 1.586250475 | D124: 2 | E124: 2 | F124: 56457.01851 | G124: 441062.8512 | H124: 67592.34161
A125: 20767 | B125: 2008 | C125: 0.9016513896 | D125: 2 | E125: 2 | F125: 54824.67396 | G125: 730863.2285 | H125: 30749.73339
A126: 20839 | B126: 2000 | C126: 0.3263780176 | D126: 1 | E126: 1 | F126: 253767.4209 | G126: 1513480.028 | H126: 128349.7894
A127: 20839 | B127: 2002 | C127: 0.349333343 | D127: 1 | E127: 1 | F127: 167421.9407 | G127: 2089903.209 | H127: 79511.99108
A128: 20849 | B128: 2000 | C128: 0.3179298859 | D128: 1 | E128: 2 | F128: 153623.0404 | G128: 1134817.775 | H128: 74099.34687
A129: 20944 | B129: 2000 | C129: 1.277620287 | D129: 1 | E129: 1 | F129: 118247.3723 | G129: 715292.903 | H129: 69022.1694
A130: 20944 | B130: 2002 | C130: 1.323950961 | D130: 1 | E130: 1 | F130: 61059.98728 | G130: 319463.7481 | H130: 54073.87329
A131: 20944 | B131: 2004 | C131: 1.030765827 | D131: 1 | E131: 1 | F131: 71426.12649 | G131: 266469.5346 | H131: 86809.16227
A132: 20944 | B132: 2006 | C132: 0.8537339998 | D132: 1 | E132: 1 | F132: 75299.16889 | G132: 470241.3904 | H132: 90110.00643
A133: 20944 | B133: 2008 | C133: 0.6624751151 | D133: 1 | E133: 1 | F133: 79732.18567 | G133: 514313.4804 | H133: 70858.0813
A134: 20981 | B134: 2000 | C134: 0.4740510872 | D134: 1 | E134: 2 | F134: 122727.7294 | G134: 249742.2432 | H134: 64219.43396
A135: 20981 | B135: 2002 | C135: 0.596236379 | D135: 1 | E135: 2 | F135: 66608.3375 | G135: 158309.9585 | H135: 38995.5817
A136: 21368 | B136: 2000 | C136: 0.4992750585 | D136: 2 | E136: 2 | F136: 104644.7443 | G136: 592108.6699 | H136: 103601.8646
A137: 21368 | B137: 2002 | C137: 0.267251596 | D137: 2 | E137: 2 | F137: 56506.67765 | G137: 315864.2118 | H137: 42895.13987
A138: 21368 | B138: 2004 | C138: 0.285585492 | D138: 2 | E138: 1 | F138: 58233.768 | G138: 451284.5102 | H138: 51223.56242
A139: 21368 | B139: 2006 | C139: 0.1991905305 | D139: 2 | E139: 1 | F139: 69641.5209 | G139: 463697.4938 | H139: 42321.72513
A140: 21384 | B140: 2000 | C140: 0.4113370563 | D140: 3 | E140: 2 | F140: 15588.17962 | G140: 382042.5644 | H140: 39382.43065
A141: 21384 | B141: 2002 | C141: 0.733774129 | D141: 3 | E141: 2 | F141: 28336.78937 | G141: 212902.8775 | H141: 31586.42118
A142: 21384 | B142: 2004 | C142: 0.506825066 | D142: 3 | E142: 2 | F142: 16274.06374 | G142: 163151.9716 | H142: 16253.63038
A143: 21384 | B143: 2006 | C143: 0.4859623416 | D143: 3 | E143: 2 | F143: 27791.17941 | G143: 316825.1368 | H143: 21160.86257
A144: 21384 | B144: 2008 | C144: 0.3068842017 | D144: 3 | E144: 2 | F144: 38512.26227 | G144: 305826.1528 | H144: 20054.17395
A145: 21384 | B145: 2010 | C145: 0.144840152 | D145: 3 | E145: 2 | F145: 45355.83789 | G145: 464622.5612 | H145: 22943.124
A146: 21384 | B146: 2012 | C146: 0.2534754867 | D146: 3 | E146: 2 | F146: 31656.38696 | G146: 384439.1356 | H146: 19424.53372
A147: 21384 | B147: 2014 | C147: 0.332108493 | D147: 3 | E147: 2 | F147: 23640.43806 | G147: 387942.7687 | H147: 18545.61136
A148: 21699 | B148: 2002 | C148: 1.265675719 | D148: 3 | E148: 1 | F148: 27062.56974 | G148: 203556.9365 | H148: 21707.54048
A149: 21761 | B149: 2000 | C149: 1.813321387 | D149: 3 | E149: 2 | F149: 37722.0564 | G149: 1660374.254 | H149: 34579.69521
A150: 21772 | B150: 2000 | C150: 3.298016636 | D150: 3 | E150: 2 | F150: 52102.81853 | G150: 45282.9342 | H150: 32933.04306
A151: 21772 | B151: 2002 | C151: 4.328844956 | D151: 3 | E151: 2 | F151: 32499.43773 | G151: 24827.18702 | H151: 18977.84976
A152: 22074 | B152: 2000 | C152: 0.3686714129 | D152: 3 | E152: 2 | F152: 51794.07125 | G152: 391079.8863 | H152: 48850.68053
A153: 22074 | B153: 2002 | C153: 0.469265708 | D153: 3 | E153: 2 | F153: 27486.68569 | G153: 220974.963 | H153: 24957.17229
A154: 22074 | B154: 2004 | C154: 0.559935899 | D154: 3 | E154: 2 | F154: 29135.87937 | G154: 271509.5075 | H154: 23641.64419
A155: 22074 | B155: 2006 | C155: 0.4312708609 | D155: 3 | E155: 2 | F155: 25275.47473 | G155: 392651.561 | H155: 21160.86257
A156: 22074 | B156: 2008 | C156: 0.260454813 | D156: 3 | E156: 2 | F156: 30933.93354 | G156: 234522.4232 | H156: 24065.00874
A157: 22074 | B157: 2010 | C157: 0.255561512 | D157: 3 | E157: 2 | F157: 26031.62146 | G157: 330910.4423 | H157: 34855.89992
A158: 22099 | B158: 2000 | C158: 1.494942702 | D158: 3 | E158: 3 | F158: 35757.0515 | G158: 209948.1495 | H158: 57632.82535
A159: 22099 | B159: 2002 | C159: 3.086560093 | D159: 3 | E159: 3 | F159: 18458.41022 | G159: 124820.2143 | H159: 18717.87922
A160: 22099 | B160: 2004 | C160: 2.557770142 | D160: 3 | E160: 3 | F160: 23651.86087 | G160: 83115.15536 | H160: 23641.64419
A161: 22099 | B161: 2006 | C161: 2.355206695 | D161: 3 | E161: 3 | F161: 26111.92191 | G161: 83477.8462 | H161: 21866.22465
A162: 22099 | B162: 2008 | C162: 1.606243838 | D162: 3 | E162: 3 | F162: 11698.26814 | G162: 101942.0509 | H162: 15263.45462
A163: 22099 | B163: 2010 | C163: 1.219007864 | D163: 3 | E163: 3 | F163: 26941.98721 | G163: 334054.0915 | H163: 21840.08919
A164: 22099 | B164: 2012 | C164: 0.8092583024 | D164: 3 | E164: 2 | F164: 29466.81607 | G164: 403266.6283 | H164: 27883.60486
A165: 22168 | B165: 2000 | C165: 1.00004281 | D165: 3 | E165: 3 | F165: 7135.492662 | G165: 0 | H165: 27169.76052
A166: 22168 | B166: 2002 | C166: 1.278145945 | D166: 3 | E166: 2 | F166: 7799.11634 | G166: 0 | H166: 7799.11634
A167: 22168 | B167: 2004 | C167: 1.332996249 | D167: 3 | E167: 1 | F167: 13544.69198 | G167: 615.6678175 | H167: 12559.62348
A168: 22168 | B168: 2006 | C168: 0.637939358 | D168: 3 | E168: 1 | F168: 7053.620855 | G168: 1175.603476 | H168: 10862.57612
A169: 22168 | B169: 2008 | C169: 0.5861210569 | D169: 3 | E169: 1 | F169: 13035.21307 | G169: 2228.24155 | H169: 11898.80988
A170: 22168 | B170: 2010 | C170: 0.385109433 | D170: 3 | E170: 1 | F170: 12905.50725 | G170: 3309.104423 | H170: 15751.33705
A171: 22168 | B171: 2012 | C171: 0.4528883461 | D171: 3 | E171: 1 | F171: 13187.58966 | G171: 2610.824425 | H171: 14411.75083
A172: 22169 | B172: 2000 | C172: 0.9553440901 | D172: 3 | E172: 1 | F172: 11595.17558 | G172: 411.6630382 | H172: 20583.15191
A173: 22169 | B173: 2002 | C173: 1.155446927 | D173: 3 | E173: 1 | F173: 8189.072157 | G173: 64992.63616 | H173: 7799.11634
A174: 22169 | B174: 2004 | C174: 1.621678453 | D174: 3 | E174: 1 | F174: 17435.71259 | G174: 187163.0165 | H174: 16992.43176
A175: 22169 | B175: 2006 | C175: 0.7521204125 | D175: 3 | E175: 1 | F175: 16646.54522 | G175: 121087.158 | H175: 15800.11072
A176: 22169 | B176: 2008 | C176: 0.6326247502 | D176: 3 | E176: 1 | F176: 15597.69085 | G176: 113640.3191 | H176: 14706.39423
A177: 22169 | B177: 2010 | C177: 0.441474508 | D177: 3 | E177: 1 | F177: 12905.50725 | G177: 2757.587019 | H177: 11912.77592
A178: 22169 | B178: 2012 | C178: 0.4814044736 | D178: 3 | E178: 1 | F178: 13847.81275 | G178: 2088.65954 | H178: 13785.15296
A179: 22169 | B179: 2014 | C179: 0.700732615 | D179: 3 | E179: 1 | F179: 12724.35001 | G179: -2060.623484 | H179: 11127.36681
A180: 22173 | B180: 2000 | C180: 1.053719158 | D180: 3 | E180: 1 | F180: 49797.50552 | G180: 15094.3114 | H180: 41166.30382
A181: 22173 | B181: 2002 | C181: 1.329719118 | D181: 3 | E181: 1 | F181: 18110.26155 | G181: 13100.80973 | H181: 12478.58614
A182: 22173 | B182: 2004 | C182: 1.547854781 | D182: 3 | E182: 1 | F182: 20070.77085 | G182: 4925.34254 | H182: 14776.02762
A183: 22173 | B183: 2006 | C183: 0.8157882099 | D183: 3 | E183: 1 | F183: 20173.53998 | G183: 9726.296512 | H183: 19750.1384
A184: 22173 | B184: 2008 | C184: 0.6476673493 | D184: 3 | E184: 1 | F184: 19157.0162 | G184: 11635.56531 | H184: 15107.47771
A185: 22173 | B185: 2010 | C185: 0.444747891 | D185: 3 | E185: 1 | F185: 18682.82363 | G185: 12074.71586 | H185: 14957.15199
A186: 22173 | B186: 2020 | C186: 2.528835446 | D186: 3 | E186: 1 | F186: 27026.3404 | G186: 12500 | H186: 24600
A187: 22222 | B187: 2000 | C187: 0.6491096836 | D187: 1 | E187: 1 | F187: 87391.94638 | G187: 827442.7068 | H187: 69159.39042
A188: 22222 | B188: 2002 | C188: 0.659378015 | D188: 1 | E188: 1 | F188: 64029.4453 | G188: 377282.2529 | H188: 35977.32368
A189: 22262 | B189: 2000 | C189: 0.1811943972 | D189: 1 | E189: 3 | F189: 153200.3997 | G189: 1152656.507 | H189: 79176.52435
A190: 22262 | B190: 2002 | C190: 0.263390173 | D190: 1 | E190: 3 | F190: 156245.157 | G190: 477045.9495 | H190: 67852.31216
A191: 22263 | B191: 2000 | C191: 0.1775964119 | D191: 1 | E191: 1 | F191: 71593.69118 | G191: 10977.68102 | H191: 55986.17319
A192: 22263 | B192: 2002 | C192: 0.234048342 | D192: 1 | E192: 1 | F192: 42815.19893 | G192: 16898.0854 | H192: 22773.41971
A193: 22274 | B193: 2000 | C193: 0.9855465982 | D193: 1 | E193: 1 | F193: 70797.80931 | G193: 69982.71649 | H193: 39409.87486
A194: 22277 | B194: 2000 | C194: 1.993319433 | D194: 1 | E194: 1 | F194: 90977.53144 | G194: 209948.1495 | H194: 58318.93041
A195: 22277 | B195: 2002 | C195: 1.787008268 | D195: 1 | E195: 1 | F195: 39188.58676 | G195: 57921.69268 | H195: 34316.1119
A196: 22277 | B196: 2004 | C196: 1.289549216 | D196: 1 | E196: 1 | F196: 37241.14502 | G196: 71417.46683 | H196: 47037.02126
A197: 22277 | B197: 2006 | C197: 1.305499185 | D197: 1 | E197: 1 | F197: 43061.94822 | G197: 94614.31045 | H197: 36443.70775
A198: 22277 | B198: 2008 | C198: 1.3262074 | D198: 1 | E198: 1 | F198: 42627.70286 | G198: 45201.12658 | H198: 34537.74403
A199: 22277 | B199: 2010 | C199: 0.862294123 | D199: 1 | E199: 1 | F199: 44870.49117 | G199: 124377.7693 | H199: 23825.55184
A200: 22277 | B200: 2012 | C200: 1.31122444 | D200: 1 | E200: 1 | F200: 44814.67545 | G200: 101426.257 | H200: 30724.18183
... 4300 more rows
